[Event "FIDE Women World Blitz 2021"]
[Site "Warsaw"]
[Date "2021.12.30"]
[Round "11.23"]
[White "Hryzlova, Sofiia"]
[Black "Efimenko, Maria"]
[Result "1-0"]
[ECO "A41"]
[WhiteElo "2097"]
[BlackElo "2207"]
[Annotator "NA"]
[PlyCount "107"]
[EventDate "2021.12.29"]
[EventType "swiss"]
[EventCountry "POL"]
[Tiebreak "Cut1 Buchholz"]
[SourceTitle "playchess.com"]
[Source "ChessBase"]
[SourceQuality "1"]
[TimeControl "180+2"]

1. d4 {[%emt 0:00:01]} d6 {[%emt 0:00:00]} 2. c4 {[%emt 0:00:02]} e5 {[%emt 0:
00:01]} 3. d5 {[%emt 0:00:05]} f5 {[%emt 0:00:04]} 4. Nc3 {[%emt 0:00:02]} Nf6
{[%emt 0:00:00]} 5. g3 {[%emt 0:00:14]} g6 {[%emt 0:00:02]} 6. Bg2 {[%emt 0:00:
02]} Bg7 {[%emt 0:00:00]} 7. e4 {[%emt 0:00:02]} O-O {[%emt 0:00:06]} 8. Nge2 {
[%emt 0:00:02]} a5 {[%emt 0:00:06]} 9. O-O {[%emt 0:00:03]} Na6 {[%emt 0:00:07]
} 10. exf5 {[%emt 0:00:03]} Bxf5 {[%emt 0:00:55]} 11. a3 {[%emt 0:00:05]} Nc5 {
[%emt 0:00:03]} 12. Be3 {[%emt 0:00:05]} Qd7 {[%emt 0:00:16]} 13. b4 {[%emt 0:
00:12]} axb4 {[%emt 0:00:03]} 14. axb4 {[%emt 0:00:02]} Nd3 {[%emt 0:00:14]}
15. Rxa8 {[%emt 0:00:38]} Rxa8 {[%emt 0:00:02]} 16. c5 {[%emt 0:00:01]} Nxb4 {
[%emt 0:00:12]} 17. Qb3 {[%emt 0:00:02]} Nd3 {[%emt 0:00:32]} 18. c6 {[%emt 0:
00:04]} bxc6 {[%emt 0:00:06]} 19. dxc6+ {[%emt 0:00:02]} Qf7 {[%emt 0:00:01]}
20. Qb7 {[%emt 0:00:10]} Rd8 {[%emt 0:00:03]} 21. Nb5 {[%emt 0:00:03]} Ne8 {
[%emt 0:00:08]} 22. Nec3 {[%emt 0:00:08]} Bc8 {[%emt 0:00:11]} 23. Qb8 {
[%emt 0:00:17]} Kh8 {[%emt 0:00:03]} 24. Na7 {[%emt 0:00:07]} Qf5 {[%emt 0:00:
11]} 25. Be4 {[%emt 0:00:03]} Qh3 {[%emt 0:00:03]} 26. Bxd3 {[%emt 0:00:09]}
Bf6 {[%emt 0:00:02]} 27. Nxc8 {[%emt 0:00:04]} Rxc8 {[%emt 0:00:01]} 28. Qb3 {
[%emt 0:00:03]} Ng7 {[%emt 0:00:02]} 29. Qf7 {[%emt 0:00:03]} Qe6 {[%emt 0:00:
06]} 30. Qxe6 {[%emt 0:00:16]} Nxe6 {[%emt 0:00:01]} 31. Ba6 {[%emt 0:00:03]}
Ra8 {[%emt 0:00:02]} 32. Bb7 {[%emt 0:00:02]} Ra5 {[%emt 0:00:07]} 33. Rb1 {
[%emt 0:00:08]} Kg7 {[%emt 0:00:01]} 34. Bc8 {[%emt 0:00:02]} Nc5 {[%emt 0:00:
05]} 35. Rb5 {[%emt 0:00:21]} Ra1+ {[%emt 0:00:03]} 36. Kg2 {[%emt 0:00:01]}
Nd3 {[%emt 0:00:03]} 37. Rb7 {[%emt 0:00:02]} Bd8 {[%emt 0:00:01]} 38. Nd5 {
[%emt 0:00:02]} Ne1+ {[%emt 0:00:07]} 39. Kh3 {[%emt 0:00:01]} Nf3 {[%emt 0:00:
02]} 40. Nxc7 {[%emt 0:00:03]} Bxc7 {[%emt 0:00:02]} 41. Rxc7+ {[%emt 0:00:02]}
Kf6 {[%emt 0:00:01]} 42. Rxh7 {[%emt 0:00:04]} e4 {[%emt 0:00:01]} 43. Kg4 {
[%emt 0:00:04]} Ne5+ {[%emt 0:00:02]} 44. Kf4 {[%emt 0:00:01]} Nxc6 {[%emt 0:
00:00]} 45. Kxe4 {[%emt 0:00:05]} Ra4+ {[%emt 0:00:01]} 46. Kf3 {[%emt 0:00:01]
} Ne5+ {[%emt 0:00:01]} 47. Kg2 {[%emt 0:00:01]} Ra2 {[%emt 0:00:01]} 48. Bb7 {
[%emt 0:00:03]} Rb2 {[%emt 0:00:02]} 49. Be4 {[%emt 0:00:03]} Rb4 {[%emt 0:00:
01]} 50. Bf3 {[%emt 0:00:02]} Rb3 {[%emt 0:00:04]} 51. h4 {[%emt 0:00:03]} Rd3
{[%emt 0:00:03]} 52. Be4 {[%emt 0:00:03]} Rd1 {[%emt 0:00:02]} 53. Bg5+ {
[%emt 0:00:05]} Ke6 {[%emt 0:00:03]} 54. Re7# {[%emt 0:00:02]} 1-0

[Event "FIDE Women World Blitz 2021"]
[Site "Warsaw"]
[Date "2021.12.30"]
[Round "11.24"]
[White "Cyfka, Karina"]
[Black "Kovanova, Baira"]
[Result "0-1"]
[ECO "D37"]
[WhiteElo "2416"]
[BlackElo "2331"]
[Annotator "ChessBase"]
[PlyCount "100"]
[EventDate "2021.12.29"]
[EventType "swiss"]
[EventCountry "POL"]
[Tiebreak "Cut1 Buchholz"]
[SourceTitle "playchess.com"]
[Source "ChessBase"]
[SourceQuality "1"]
[TimeControl "180+2"]

1. d4 {[%emt 0:00:01]} d5 {[%emt 0:00:01]} 2. c4 {[%emt 0:00:02]} e6 {[%emt 0:
00:02]} 3. Nf3 {[%emt 0:00:02]} Nf6 {[%emt 0:00:01]} 4. Nc3 {[%emt 0:00:01]}
Nbd7 {[%emt 0:00:02]} 5. Bf4 {[%emt 0:00:10]} dxc4 {[%emt 0:00:02]} 6. e4 {
[%emt 0:00:06]} Bb4 {[%emt 0:00:14]} 7. Qc2 {[%emt 0:00:12]} c5 {[%emt 0:00:16]
} 8. O-O-O {[%emt 0:00:41]} Qa5 {[%emt 0:00:24]} 9. Bxc4 {[%emt 0:00:25]} cxd4
{[%emt 0:00:13]} 10. Nb5 {[%emt 0:00:24]} O-O {[%emt 0:00:09]} 11. Bc7 {
[%emt 0:00:16]} Nb6 {[%emt 0:00:23]} 12. Nfxd4 {[%emt 0:00:21]} Bd7 {[%emt 0:
00:13]} 13. a3 {[%emt 0:00:18]} Bxb5 {[%emt 0:00:26]} 14. Nxb5 {[%emt 0:00:21]}
Rac8 {[%emt 0:00:06]} 15. axb4 {[%emt 0:00:03]} Qxb4 {[%emt 0:00:01]} 16. b3 {
[%emt 0:00:06]} Nxc4 {[%emt 0:00:29]} 17. Qxc4 {[%emt 0:00:04]} Qxc4+ {[%emt 0:
00:13]} 18. bxc4 {[%emt 0:00:01]} a6 {[%emt 0:00:01]} 19. Bd6 {[%emt 0:00:01]}
Rxc4+ {[%emt 0:00:09]} 20. Kb2 Rfc8 {[%emt 0:00:06]} 21. Na3 {[%emt 0:00:01]}
Rxe4 {[%emt 0:00:04]} 22. Rhe1 {[%emt 0:00:01]} Rg4 {[%emt 0:00:05]} 23. Rc1 {
[%emt 0:00:01]} Rd8 {[%emt 0:00:02]} 24. Bg3 {[%emt 0:00:01]} Nd5 {[%emt 0:00:
01]} 25. f3 {[%emt 0:00:03]} Rb4+ {[%emt 0:00:01]} 26. Ka2 {[%emt 0:00:01]} h6
{[%emt 0:00:02]} 27. Rb1 {[%emt 0:00:02]} Nc3+ {[%emt 0:00:02]} 28. Ka1 {
[%emt 0:00:01]} Nxb1 {[%emt 0:00:02]} 29. Rxb1 {[%emt 0:00:01]} Ra4 {[%emt 0:
00:00]} 30. Ka2 {[%emt 0:00:01]} Rd3 {[%emt 0:00:04]} 31. Rb3 {[%emt 0:00:01]}
Rd2+ {[%emt 0:00:03]} 32. Rb2 {[%emt 0:00:02]} Rad4 {[%emt 0:00:06]} 33. Be5 {
[%emt 0:00:06]} Rxb2+ {[%emt 0:00:01]} 34. Kxb2 {[%emt 0:00:01]} Rd2+ {[%emt 0:
00:01]} 35. Kc3 {[%emt 0:00:01]} Rxg2 {[%emt 0:00:01]} 36. Nc4 {[%emt 0:00:00]}
b5 {[%emt 0:00:01]} 37. Nd6 {[%emt 0:00:02]} Rf2 {[%emt 0:00:02]} 38. f4 {
[%emt 0:00:02]} f6 {[%emt 0:00:01]} 39. Bd4 {[%emt 0:00:02]} Rxf4 {[%emt 0:00:
01]} 40. Nb7 {[%emt 0:00:01]} Rh4 {[%emt 0:00:02]} 41. Nd8 {[%emt 0:00:02]} e5
{[%emt 0:00:01]} 42. Bg1 {[%emt 0:00:02]} Rg4 {[%emt 0:00:02]} 43. Bb6 {
[%emt 0:00:03]} Rg2 {[%emt 0:00:02]} 44. Nb7 {[%emt 0:00:02]} Rxh2 {[%emt 0:00:
02]} 45. Nc5 {[%emt 0:00:00]} Rg2 {[%emt 0:00:02]} 46. Nxa6 {[%emt 0:00:02]} h5
{[%emt 0:00:01]} 47. Kd3 {[%emt 0:00:01]} h4 {[%emt 0:00:01]} 48. Ke3 {[%emt 0:
00:00]} h3 {[%emt 0:00:01]} 49. Kf3 {[%emt 0:00:00]} Ra2 {[%emt 0:00:03]} 50.
Nc7 {[%emt 0:00:02]} h2 {[%emt 0:00:01]} 0-1

[Event "FIDE Women World Blitz 2021"]
[Site "Warsaw"]
[Date "2021.12.30"]
[Round "11.25"]
[White "Berend, Elvira"]
[Black "Strutinskaia, Galina"]
[Result "1-0"]
[ECO "A81"]
[WhiteElo "2328"]
[BlackElo "2188"]
[Annotator "NA"]
[PlyCount "119"]
[EventDate "2021.12.29"]
[EventType "swiss"]
[EventCountry "POL"]
[Tiebreak "Cut1 Buchholz"]
[SourceTitle "playchess.com"]
[Source "ChessBase"]
[SourceQuality "1"]
[TimeControl "180+2"]

1. d4 {[%emt 0:00:01]} f5 {[%emt 0:00:01]} 2. g3 {[%emt 0:00:04]} Nf6 {[%emt 0:
00:02]} 3. Bg2 {[%emt 0:00:01]} g6 {[%emt 0:00:03]} 4. Nh3 {[%emt 0:00:02]} Bg7
{[%emt 0:00:01]} 5. c3 {[%emt 0:00:02]} Nc6 {[%emt 0:00:23]} 6. Qb3 {[%emt 0:
00:13]} e6 {[%emt 0:00:13]} 7. O-O {[%emt 0:00:03]} a5 {[%emt 0:00:02]} 8. a4 {
[%emt 0:00:04]} O-O {[%emt 0:00:07]} 9. Na3 {[%emt 0:00:02]} Ne7 {[%emt 0:00:
03]} 10. Nf4 {[%emt 0:00:31]} g5 {[%emt 0:00:08]} 11. Nd3 {[%emt 0:00:02]} h6 {
[%emt 0:00:01]} 12. Nc5 {[%emt 0:00:07]} Rb8 {[%emt 0:00:07]} 13. Nc4 {[%emt 0:
00:47]} b6 {[%emt 0:00:12]} 14. Nd3 {[%emt 0:00:05]} Ba6 {[%emt 0:00:07]} 15.
Qa2 {[%emt 0:00:06]} Bb7 {[%emt 0:00:04]} 16. Nce5 {[%emt 0:00:03]} Bd5 {
[%emt 0:00:16]} 17. b3 {[%emt 0:00:05]} Qe8 {[%emt 0:00:02]} 18. c4 {[%emt 0:
00:01]} Bxg2 19. Kxg2 {[%emt 0:00:01]} d6 {[%emt 0:00:03]} 20. Nf3 {[%emt 0:00:
05]} Qh5 {[%emt 0:00:08]} 21. h3 {[%emt 0:00:05]} Ne4 {[%emt 0:00:08]} 22. Qc2
{[%emt 0:00:20]} c5 {[%emt 0:00:05]} 23. Bb2 {[%emt 0:00:03]} cxd4 {[%emt 0:00:
06]} 24. Bxd4 {[%emt 0:00:03]} e5 {[%emt 0:00:02]} 25. Bb2 {[%emt 0:00:01]} Nf6
{[%emt 0:00:05]} 26. Nh2 {[%emt 0:00:04]} Nc6 {[%emt 0:00:10]} 27. Ne1 {
[%emt 0:00:08]} f4 {[%emt 0:00:08]} 28. g4 {[%emt 0:00:01]} Qf7 {[%emt 0:00:01]
} 29. Rd1 {[%emt 0:00:06]} Rfd8 {[%emt 0:00:05]} 30. e4 {[%emt 0:00:02]} h5 {
[%emt 0:00:05]} 31. Nef3 {[%emt 0:00:01]} Qg6 {[%emt 0:00:03]} 32. Rfe1 {
[%emt 0:00:02]} Nd7 {[%emt 0:00:08]} 33. gxh5 {[%emt 0:00:05]} Qe6 {[%emt 0:00:
09]} 34. Ng4 {[%emt 0:00:02]} Nc5 {[%emt 0:00:13]} 35. Nxg5 {[%emt 0:00:02]}
Qe7 {[%emt 0:00:02]} 36. Nf3 {[%emt 0:00:02]} Kh7 {[%emt 0:00:06]} 37. Rg1 {
[%emt 0:00:02]} Rg8 {[%emt 0:00:01]} 38. Kh2 {[%emt 0:00:04]} Nb4 {[%emt 0:00:
04]} 39. Qe2 {[%emt 0:00:03]} Nxb3 {[%emt 0:00:09]} 40. Ba3 {[%emt 0:00:03]}
Nc5 {[%emt 0:00:02]} 41. Bxb4 {[%emt 0:00:01]} axb4 {[%emt 0:00:01]} 42. h4 {
[%emt 0:00:06]} b3 {[%emt 0:00:14]} 43. Ng5+ {[%emt 0:00:01]} Kh8 {[%emt 0:00:
01]} 44. Rb1 {[%emt 0:00:02]} Ra8 {[%emt 0:00:03]} 45. h6 {[%emt 0:00:13]} Bf6
{[%emt 0:00:03]} 46. h7 {[%emt 0:00:01]} Rg7 {[%emt 0:00:03]} 47. Nxf6 {
[%emt 0:00:03]} Qxf6 {[%emt 0:00:01]} 48. Rg4 {[%emt 0:00:02]} Rxa4 {[%emt 0:
00:04]} 49. Rbg1 {[%emt 0:00:01]} Ra2 {[%emt 0:00:03]} 50. Qf3 {[%emt 0:00:01]}
Raa7 {[%emt 0:00:06]} 51. Nh3 {[%emt 0:00:04]} b2 {[%emt 0:00:03]} 52. Rb1 {
[%emt 0:00:03]} Rxg4 {[%emt 0:00:01]} 53. Qxg4 {[%emt 0:00:01]} Kxh7 {[%emt 0:
00:02]} 54. Rxb2 {[%emt 0:00:02]} Nxe4 {[%emt 0:00:02]} 55. Rxb6 {[%emt 0:00:
03]} Rg7 {[%emt 0:00:02]} 56. Qh5+ {[%emt 0:00:03]} Qh6 {[%emt 0:00:03]} 57.
Qxh6+ {[%emt 0:00:01]} Kxh6 {[%emt 0:00:01]} 58. c5 {[%emt 0:00:02]} Rd7 {
[%emt 0:00:00]} 59. cxd6 {[%emt 0:00:02]} Rxd6 {[%emt 0:00:01]} 60. Rxd6+ 1-0

[Event "FIDE Women World Blitz 2021"]
[Site "Warsaw"]
[Date "2021.12.30"]
[Round "11.26"]
[White "Fernandez, Maria Florencia"]
[Black "Muetsch, Annmarie"]
[Result "0-1"]
[ECO "A41"]
[WhiteElo "2184"]
[BlackElo "2279"]
[Annotator "NA"]
[PlyCount "68"]
[EventDate "2021.12.29"]
[EventType "swiss"]
[EventCountry "POL"]
[Tiebreak "Cut1 Buchholz"]
[SourceTitle "playchess.com"]
[Source "ChessBase"]
[SourceQuality "1"]
[TimeControl "180+2"]

1. d4 {[%emt 0:00:02]} d6 {[%emt 0:00:01]} 2. c4 {[%emt 0:00:02]} e5 {[%emt 0:
00:01]} 3. d5 {[%emt 0:00:08]} f5 {[%emt 0:00:01]} 4. Nc3 {[%emt 0:00:01]} Nf6
{[%emt 0:00:02]} 5. f3 {[%emt 0:00:04]} Be7 {[%emt 0:00:03]} 6. Qc2 {[%emt 0:
00:03]} O-O {[%emt 0:00:04]} 7. e4 {[%emt 0:00:02]} fxe4 {[%emt 0:00:06]} 8.
Nxe4 {[%emt 0:00:01]} Nxe4 {[%emt 0:00:08]} 9. fxe4 {[%emt 0:00:17]} a5 {
[%emt 0:00:17]} 10. Nf3 {[%emt 0:00:07]} Na6 {[%emt 0:00:02]} 11. Be2 {[%emt 0:
00:06]} Nc5 {[%emt 0:00:17]} 12. O-O {[%emt 0:00:03]} Qe8 {[%emt 0:00:05]} 13.
Be3 {[%emt 0:00:03]} b6 {[%emt 0:00:02]} 14. Nd2 {[%emt 0:00:27]} Qg6 {[%emt 0:
00:13]} 15. Rxf8+ {[%emt 0:00:02]} Bxf8 {[%emt 0:00:03]} 16. b3 {[%emt 0:00:05]
} Be7 {[%emt 0:00:12]} 17. a3 {[%emt 0:00:11]} Bd7 {[%emt 0:00:04]} 18. Rf1 {
[%emt 0:00:20]} Bg5 {[%emt 0:00:04]} 19. Bxc5 {[%emt 0:00:36]} bxc5 {[%emt 0:
00:05]} 20. Nb1 {[%emt 0:00:08]} a4 {[%emt 0:00:19]} 21. b4 {[%emt 0:00:07]}
cxb4 {[%emt 0:00:01]} 22. axb4 {[%emt 0:00:01]} a3 {[%emt 0:00:01]} 23. Nc3 {
[%emt 0:00:00]} Be3+ {[%emt 0:00:16]} 24. Kh1 {[%emt 0:00:01]} Qh6 {[%emt 0:00:
07]} 25. c5 {[%emt 0:00:20]} Bf4 {[%emt 0:00:04]} 26. g3 {[%emt 0:00:17]} Bxg3
{[%emt 0:00:04]} 27. Bf3 {[%emt 0:00:01]} Bf4 {[%emt 0:00:12]} 28. c6 {[%emt 0:
00:07]} Bh3 {[%emt 0:00:08]} 29. Rg1 {[%emt 0:00:01]} Rf8 {[%emt 0:00:11]} 30.
Qe2 {[%emt 0:00:02]} Bc8 {[%emt 0:00:11]} 31. Rg2 {[%emt 0:00:05]} Be3 {
[%emt 0:00:09]} 32. b5 {[%emt 0:00:01]} Bd4 {[%emt 0:00:03]} 33. Nb1 {[%emt 0:
00:05]} Qc1+ {[%emt 0:00:03]} 34. Qd1 {[%emt 0:00:02]} Qxd1+ {[%emt 0:00:03]}
0-1

[Event "FIDE Women World Blitz 2021"]
[Site "Warsaw"]
[Date "2021.12.30"]
[Round "11.27"]
[White "Danielian, Elina"]
[Black "Sandu, Mihaela"]
[Result "0-1"]
[ECO "D03"]
[WhiteElo "2450"]
[BlackElo "2244"]
[Annotator "ChessBase"]
[PlyCount "82"]
[EventDate "2021.12.29"]
[EventType "swiss"]
[EventCountry "POL"]
[Tiebreak "Cut1 Buchholz"]
[SourceTitle "playchess.com"]
[Source "ChessBase"]
[SourceQuality "1"]
[TimeControl "180+2"]

1. d4 {[%emt 0:00:01]} Nf6 {[%emt 0:00:01]} 2. Bg5 {[%emt 0:00:02]} e6 {
[%emt 0:00:05]} 3. Nd2 {[%emt 0:00:01]} d5 {[%emt 0:00:07]} 4. e3 {[%emt 0:00:
01]} h6 {[%emt 0:00:13]} 5. Bh4 {[%emt 0:00:06]} c5 {[%emt 0:00:01]} 6. c3 {
[%emt 0:00:04]} Nc6 {[%emt 0:00:05]} 7. Ngf3 {[%emt 0:00:12]} Bd6 {[%emt 0:00:
09]} 8. Bd3 {[%emt 0:00:07]} Qb6 {[%emt 0:00:43]} 9. Bxf6 {[%emt 0:00:18]} gxf6
{[%emt 0:00:01]} 10. Rb1 {[%emt 0:00:17]} cxd4 {[%emt 0:00:05]} 11. exd4 {
[%emt 0:01:00]} Bd7 {[%emt 0:00:01]} 12. O-O {[%emt 0:00:18]} Qc7 {[%emt 0:00:
15]} 13. c4 {[%emt 0:00:05]} dxc4 {[%emt 0:00:13]} 14. Nxc4 {[%emt 0:00:04]}
Bf4 {[%emt 0:00:02]} 15. g3 {[%emt 0:00:07]} Rg8 {[%emt 0:00:01]} 16. Qe2 {
[%emt 0:00:21]} O-O-O {[%emt 0:00:03]} 17. Kh1 {[%emt 0:00:08]} Bd6 {[%emt 0:
00:43]} 18. Rbc1 {[%emt 0:00:05]} Kb8 {[%emt 0:00:17]} 19. a3 {[%emt 0:00:05]}
Ne7 {[%emt 0:00:15]} 20. b4 {[%emt 0:00:07]} Bc6 {[%emt 0:00:13]} 21. Ne3 {
[%emt 0:00:03]} Qd7 {[%emt 0:00:03]} 22. b5 {[%emt 0:00:04]} Bxf3+ 23. Qxf3 {
[%emt 0:00:01]} Nd5 {[%emt 0:00:02]} 24. Nxd5 {[%emt 0:00:02]} exd5 {[%emt 0:
00:03]} 25. a4 {[%emt 0:00:01]} Bb4 {[%emt 0:00:02]} 26. Bf5 {[%emt 0:00:03]}
Qd6 {[%emt 0:00:02]} 27. Rc2 {[%emt 0:00:03]} Rge8 {[%emt 0:00:02]} 28. Kg2 {
[%emt 0:00:01]} Ba5 {[%emt 0:00:02]} 29. Rfc1 {[%emt 0:00:01]} Bb6 {[%emt 0:00:
03]} 30. h4 {[%emt 0:00:02]} Bxd4 {[%emt 0:00:01]} 31. Rd1 {[%emt 0:00:02]} Bb6
{[%emt 0:00:02]} 32. Rcd2 {[%emt 0:00:02]} d4 {[%emt 0:00:02]} 33. Rd3 {
[%emt 0:00:03]} Re5 {[%emt 0:00:01]} 34. Be4 {[%emt 0:00:02]} Qd7 {[%emt 0:00:
02]} 35. g4 {[%emt 0:00:03]} Qe7 {[%emt 0:00:02]} 36. Bf5 {[%emt 0:00:02]} h5 {
[%emt 0:00:02]} 37. gxh5 {[%emt 0:00:01]} Rg8+ {[%emt 0:00:01]} 38. Kh1 {
[%emt 0:00:02]} Re1+ {[%emt 0:00:03]} 39. Rxe1 {[%emt 0:00:01]} Qxe1+ {[%emt 0:
00:00]} 40. Kh2 {[%emt 0:00:00]} Bc7+ {[%emt 0:00:03]} 41. Kh3 {[%emt 0:00:01]}
Qf1+ {[%emt 0:00:01]} 0-1

[Event "FIDE Women World Blitz 2021"]
[Site "Warsaw"]
[Date "2021.12.30"]
[Round "11.28"]
[White "Bulmaga, Irina"]
[Black "Pavlidou, Ekaterini"]
[Result "1-0"]
[ECO "B22"]
[WhiteElo "2405"]
[BlackElo "2177"]
[Annotator "NA"]
[PlyCount "79"]
[EventDate "2021.12.29"]
[EventType "swiss"]
[EventCountry "POL"]
[Tiebreak "Cut1 Buchholz"]
[SourceTitle "playchess.com"]
[Source "ChessBase"]
[SourceQuality "1"]
[TimeControl "180+2"]

1. e4 {[%emt 0:00:02]} c5 {[%emt 0:00:01]} 2. Be2 {[%emt 0:00:01]} Nc6 {
[%emt 0:00:04]} 3. f4 {[%emt 0:00:02]} d6 {[%emt 0:00:05]} 4. Nf3 {[%emt 0:00:
02]} g6 {[%emt 0:00:00]} 5. O-O {[%emt 0:00:02]} Bg7 {[%emt 0:00:02]} 6. c3 {
[%emt 0:00:02]} Nf6 {[%emt 0:00:04]} 7. d3 {[%emt 0:00:01]} O-O {[%emt 0:00:02]
} 8. Kh1 {[%emt 0:00:02]} a6 {[%emt 0:00:07]} 9. Be3 {[%emt 0:00:03]} b5 {
[%emt 0:00:05]} 10. Nbd2 {[%emt 0:00:04]} Bb7 {[%emt 0:00:02]} 11. d4 {[%emt 0:
00:06]} cxd4 {[%emt 0:00:04]} 12. cxd4 {[%emt 0:00:02]} d5 {[%emt 0:00:04]} 13.
e5 {[%emt 0:00:02]} Nd7 {[%emt 0:00:11]} 14. Bd3 {[%emt 0:00:13]} e6 {[%emt 0:
00:09]} 15. Bf2 {[%emt 0:00:02]} f5 {[%emt 0:00:07]} 16. Nb3 {[%emt 0:00:18]}
Na5 {[%emt 0:00:09]} 17. Nxa5 {[%emt 0:00:07]} Qxa5 {[%emt 0:00:01]} 18. Nd2 {
[%emt 0:00:07]} Rfc8 {[%emt 0:00:12]} 19. Nb3 {[%emt 0:00:02]} Qb6 {[%emt 0:00:
01]} 20. Nc5 {[%emt 0:00:06]} Nxc5 {[%emt 0:00:01]} 21. dxc5 {[%emt 0:00:02]}
Qc7 {[%emt 0:00:16]} 22. Bd4 {[%emt 0:00:02]} Bc6 {[%emt 0:00:06]} 23. b4 {
[%emt 0:00:05]} a5 {[%emt 0:00:01]} 24. a4 {[%emt 0:00:09]} Rcb8 {[%emt 0:00:
20]} 25. axb5 {[%emt 0:00:23]} Bxb5 {[%emt 0:00:01]} 26. bxa5 {[%emt 0:00:07]}
Bxd3 {[%emt 0:00:10]} 27. Qxd3 {[%emt 0:00:02]} Rxa5 {[%emt 0:00:02]} 28. Rxa5
{[%emt 0:00:05]} Qxa5 {[%emt 0:00:01]} 29. h3 {[%emt 0:00:07]} Bf8 {[%emt 0:00:
03]} 30. Rc1 {[%emt 0:00:04]} Rc8 {[%emt 0:00:59]} 31. c6 {[%emt 0:00:02]} Rc7
{[%emt 0:00:16]} 32. Kh2 {[%emt 0:00:14]} Qa4 {[%emt 0:00:02]} 33. Qc3 {
[%emt 0:00:10]} Bb4 {[%emt 0:00:03]} 34. Qc2 {[%emt 0:00:02]} Qb5 {[%emt 0:00:
02]} 35. Qb3 {[%emt 0:00:11]} Qa5 {[%emt 0:00:09]} 36. Rb1 {[%emt 0:00:10]} Bd2
{[%emt 0:00:06]} 37. Bb6 {[%emt 0:00:13]} Bxf4+ {[%emt 0:00:02]} 38. Kh1 {
[%emt 0:00:02]} Qd2 {[%emt 0:00:04]} 39. Bxc7 {[%emt 0:00:04]} d4 {[%emt 0:00:
01]} 40. Qxe6+ {[%emt 0:00:05]} 1-0

[Event "FIDE Women World Blitz 2021"]
[Site "Warsaw"]
[Date "2021.12.30"]
[Round "11.29"]
[White "Dworakowska, Joanna"]
[Black "Vantika Agrawal"]
[Result "0-1"]
[ECO "B90"]
[WhiteElo "2228"]
[BlackElo "2329"]
[Annotator "NA"]
[PlyCount "76"]
[EventDate "2021.12.29"]
[EventType "swiss"]
[EventCountry "POL"]
[Tiebreak "Cut1 Buchholz"]
[SourceTitle "playchess.com"]
[Source "ChessBase"]
[SourceQuality "1"]
[TimeControl "180+2"]

1. e4 {[%emt 0:00:01]} c5 {[%emt 0:00:05]} 2. Nf3 {[%emt 0:00:01]} d6 {[%emt 0:
00:00]} 3. d4 {[%emt 0:00:02]} cxd4 {[%emt 0:00:01]} 4. Nxd4 {[%emt 0:00:01]}
Nf6 {[%emt 0:00:01]} 5. Nc3 {[%emt 0:00:01]} a6 {[%emt 0:00:01]} 6. h3 {
[%emt 0:00:03]} e5 {[%emt 0:00:01]} 7. Nde2 {[%emt 0:00:06]} h5 {[%emt 0:00:01]
} 8. g3 {[%emt 0:00:02]} Be7 {[%emt 0:00:02]} 9. Bg2 {[%emt 0:00:02]} b5 {
[%emt 0:00:01]} 10. Bg5 {[%emt 0:00:12]} Nbd7 {[%emt 0:00:07]} 11. O-O {
[%emt 0:00:26]} O-O {[%emt 0:00:15]} 12. Bxf6 {[%emt 0:00:09]} Nxf6 {[%emt 0:
00:02]} 13. Nd5 {[%emt 0:00:03]} Nxd5 {[%emt 0:00:04]} 14. exd5 {[%emt 0:00:02]
} h4 {[%emt 0:00:07]} 15. f4 {[%emt 0:00:20]} Bf6 {[%emt 0:00:12]} 16. f5 {
[%emt 0:00:11]} e4 {[%emt 0:00:10]} 17. c3 {[%emt 0:00:11]} Re8 {[%emt 0:00:02]
} 18. g4 {[%emt 0:00:04]} Qb6+ {[%emt 0:00:06]} 19. Kh1 {[%emt 0:00:02]} b4 {
[%emt 0:00:08]} 20. Qc1 {[%emt 0:00:19]} e3 {[%emt 0:00:04]} 21. c4 {[%emt 0:
00:06]} Bd7 {[%emt 0:00:07]} 22. Qc2 {[%emt 0:00:03]} Rac8 {[%emt 0:00:03]} 23.
Rad1 {[%emt 0:00:06]} a5 {[%emt 0:00:03]} 24. Rfe1 {[%emt 0:00:14]} a4 {
[%emt 0:00:02]} 25. Qd3 {[%emt 0:00:04]} Bxb2 {[%emt 0:00:08]} 26. Ng1 {
[%emt 0:00:19]} Qc5 {[%emt 0:00:08]} 27. Bf1 {[%emt 0:00:02]} Bc3 {[%emt 0:00:
05]} 28. Nf3 {[%emt 0:00:07]} Bxe1 {[%emt 0:00:03]} 29. Rxe1 {[%emt 0:00:01]}
Rb8 {[%emt 0:00:07]} 30. Ng5 {[%emt 0:00:31]} b3 {[%emt 0:00:08]} 31. Rb1 {
[%emt 0:00:10]} bxa2 {[%emt 0:00:04]} 32. Ra1 {[%emt 0:00:01]} e2 {[%emt 0:00:
15]} 33. f6 {[%emt 0:00:01]} exf1=Q+ {[%emt 0:00:46]} 34. Rxf1 {[%emt 0:00:02]}
g6 {[%emt 0:00:02]} 35. Ne6 {[%emt 0:00:02]} Bxe6 {[%emt 0:00:02]} 36. dxe6 {
[%emt 0:00:02]} Rxe6 {[%emt 0:00:01]} 37. Qxg6+ {[%emt 0:00:04]} fxg6 {[%emt 0:
00:02]} 38. f7+ {[%emt 0:00:01]} Kf8 {[%emt 0:00:02]} 0-1

[Event "FIDE Women World Blitz 2021"]
[Site "Warsaw"]
[Date "2021.12.30"]
[Round "11.30"]
[White "Jarocka, Liwia"]
[Black "Nomin-Erdene, Davaademberel"]
[Result "0-1"]
[ECO "B19"]
[WhiteElo "1851"]
[BlackElo "2188"]
[Annotator "NA"]
[PlyCount "66"]
[EventDate "2021.12.29"]
[EventType "swiss"]
[EventCountry "POL"]
[Tiebreak "Cut1 Buchholz"]
[SourceTitle "playchess.com"]
[Source "ChessBase"]
[SourceQuality "1"]
[TimeControl "180+2"]

1. e4 {[%emt 0:00:00]} c6 {[%emt 0:00:00]} 2. d4 {[%emt 0:00:01]} d5 3. Nd2
dxe4 {[%emt 0:00:02]} 4. Nxe4 {[%emt 0:00:01]} Bf5 {[%emt 0:00:01]} 5. Ng3 {
[%emt 0:00:02]} Bg6 {[%emt 0:00:00]} 6. Nf3 {[%emt 0:00:02]} Nd7 {[%emt 0:00:
01]} 7. h4 {[%emt 0:00:02]} h6 {[%emt 0:00:00]} 8. h5 {[%emt 0:00:04]} Bh7 {
[%emt 0:00:01]} 9. Bd3 {[%emt 0:00:00]} Bxd3 10. Qxd3 {[%emt 0:00:01]} e6 {
[%emt 0:00:02]} 11. Bd2 {[%emt 0:00:00]} Ngf6 {[%emt 0:00:00]} 12. O-O-O {
[%emt 0:00:02]} Be7 {[%emt 0:00:01]} 13. Kb1 {[%emt 0:00:01]} O-O {[%emt 0:00:
02]} 14. Ne4 {[%emt 0:00:02]} c5 {[%emt 0:00:00]} 15. dxc5 {[%emt 0:00:22]}
Nxe4 {[%emt 0:00:01]} 16. Qxe4 Nxc5 {[%emt 0:00:01]} 17. Qe2 {[%emt 0:00:06]}
Qb6 {[%emt 0:00:03]} 18. Be3 {[%emt 0:00:07]} Rac8 {[%emt 0:00:07]} 19. Ne5 {
[%emt 0:00:14]} Bf6 {[%emt 0:00:11]} 20. Nd3 {[%emt 0:00:31]} Qb5 {[%emt 0:00:
11]} 21. Bxc5 {[%emt 0:00:10]} Rxc5 {[%emt 0:00:01]} 22. Qd2 {[%emt 0:00:37]}
Rc6 {[%emt 0:00:03]} 23. Qb4 {[%emt 0:00:05]} Qg5 {[%emt 0:00:22]} 24. Qf4 {
[%emt 0:00:06]} Qb5 {[%emt 0:00:14]} 25. Qb4 {[%emt 0:00:01]} Qa6 {[%emt 0:00:
01]} 26. Nc5 {[%emt 0:00:11]} Qe2 {[%emt 0:00:01]} 27. Nd7 {[%emt 0:00:06]}
Qxc2+ {[%emt 0:00:09]} 28. Ka1 {[%emt 0:00:01]} Rfc8 {[%emt 0:00:16]} 29. Nxf6+
gxf6 {[%emt 0:00:02]} 30. Qg4+ {[%emt 0:00:09]} Kh7 {[%emt 0:00:07]} 31. a3 {
[%emt 0:00:08]} Rb6 {[%emt 0:00:06]} 32. Rb1 {[%emt 0:00:10]} Rc5 {[%emt 0:00:
17]} 33. Qa4 {[%emt 0:00:10]} Qxa4 {[%emt 0:00:02]} 0-1